{"text_format":"3","workbook":"xlsx","n_sheets":6,"sheets":["לוח מחוונים","מכירות","הכנסות","הוצאות","מסים","קטגוריות"],"not_rendered":{"images":1,"defined_names":34},"read":"whole","date_system":"1900"}

{"sheet":"לוח מחוונים","index":0,"n_rows":20,"n_cols":8,"rows_kept":20,"merged":[[0,2,0,4],[0,6,3,7],[5,1,5,7]]}
[null,"דוח רווח והפסד","עבור [החודש או השנה] שהסתיים/שהסתיימה ב- [שנה-חודש-יום]"]
[null,"שם החברה","באלפים"]
[null,"שולי רווח גולמי נוכחיים  [ש/ר]",{"$f":"IFERROR(IF(Total_Gross_Profit=0,\"-\",Total_Gross_Profit/Total_Sales_Revenue),\"-\")","v":"-"}]
[null,"רווח נוכחי על מכירות  [ב/ר]",{"$f":"IFERROR(IF(Net_Profit=0,\"-\",Net_Profit/Total_Sales_Revenue),\"-\")","v":"-"}]
[]
[null,"אל תשנה את הקטגוריות בגליון עבודה זה. הנוסחאות עלולות להיפגע. השתמש בגליון העבודה 'קטגוריות' כדי להוסיף קטגוריות ולעדכן את גליונות העבודה המתאימים בערכים. גליון עבודה זה יתעדכן באופן אוטומטי."]
[null,"סיכום","סה\"כ תקופה קודמת","סה\"כ תקציב","סה\"כ תקופה\nנוכחית","סה\"כ תקופה נוכחית כאחוז מהמכירות","סה\"כ אחוז שינוי מהתקופה הקודמת","סה\"כ אחוז שינוי מהתקציב"]
[null,"סה\"כ רווח ממכירות  [ר]",{"$f":"SUMIFS(רווח_ממכירות[תקופה קודמת],רווח_ממכירות[סוג רווח],\"רווח ממכירות\")","v":0},{"$f":"SUMIFS(רווח_ממכירות[תקציב],רווח_ממכירות[סוג רווח],\"רווח ממכירות\")","v":0},{"$f":"SUMIFS(רווח_ממכירות[תקופה נוכחית],רווח_ממכירות[סוג רווח],\"רווח ממכירות\")","v":0},{"$f":"SUMIFS(רווח_ממכירות[תקופה נוכחית כאחוז מהמכירות],רווח_ממכירות[סוג רווח],\"רווח ממכירות\")","v":{"v":0,"d":"0.00%"}},{"$f":"SUMIFS(רווח_ממכירות[אחוז שינוי מהתקופה הקודמת],רווח_ממכירות[סוג רווח],\"רווח ממכירות\")","v":{"v":0,"d":"0.00%"}},{"$f":"SUMIFS(רווח_ממכירות[אחוז שינוי מהתקציב],רווח_ממכירות[סוג רווח],\"רווח ממכירות\")","v":{"v":0,"d":"0.00%"}}]
[null,"סה\"כ עלות מכירות  [ע]",{"$f":"SUMIFS(רווח_ממכירות[תקופה קודמת],רווח_ממכירות[סוג רווח],\"עלות מכירות\")","v":0},{"$f":"SUMIFS(רווח_ממכירות[תקציב],רווח_ממכירות[סוג רווח],\"עלות מכירות\")","v":0},{"$f":"SUMIFS(רווח_ממכירות[תקופה נוכחית],רווח_ממכירות[סוג רווח],\"עלות מכירות\")","v":0},{"$f":"SUMIFS(רווח_ממכירות[תקופה נוכחית כאחוז מהמכירות],רווח_ממכירות[סוג רווח],\"עלות מכירות\")","v":{"v":0,"d":"0.00%"}},{"$f":"SUMIFS(רווח_ממכירות[אחוז שינוי מהתקופה הקודמת],רווח_ממכירות[סוג רווח],\"עלות מכירות\")","v":{"v":0,"d":"0.00%"}},{"$f":"SUMIFS(רווח_ממכירות[אחוז שינוי מהתקציב],רווח_ממכירות[סוג רווח],\"עלות מכירות\")","v":{"v":0,"d":"0.00%"}}]
[null,"סה\"כ הוצאות מכירה ושיווק  [מ]",{"$f":"SUMIFS(OperatingExpenses[תקופה קודמת],OperatingExpenses[סוג הוצאה],\"מכירות ושיווק\")","v":0},{"$f":"SUMIFS(OperatingExpenses[תקציב],OperatingExpenses[סוג הוצאה],\"מכירות ושיווק\")","v":0},{"$f":"SUMIFS(OperatingExpenses[תקופה נוכחית],OperatingExpenses[סוג הוצאה],\"מכירות ושיווק\")","v":0},{"$f":"SUMIFS(OperatingExpenses[תקופה נוכחית כאחוז מהמכירות],OperatingExpenses[סוג הוצאה],\"מכירות ושיווק\")","v":{"v":0,"d":"0.00%"}},{"$f":"SUMIFS(OperatingExpenses[אחוז שינוי מהתקופה הקודמת],OperatingExpenses[סוג הוצאה],\"מכירות ושיווק\")","v":{"v":0,"d":"0.00%"}},{"$f":"SUMIFS(OperatingExpenses[אחוז שינוי מהתקציב],OperatingExpenses[סוג הוצאה],\"מכירות ושיווק\")","v":{"v":0,"d":"0.00%"}}]
[null,"סה\"כ הוצאות מחקר ופיתוח  [פ]",{"$f":"SUMIFS(OperatingExpenses[תקופה קודמת],OperatingExpenses[סוג הוצאה],\"מחקר ופיתוח\")","v":0},{"$f":"SUMIFS(OperatingExpenses[תקציב],OperatingExpenses[סוג הוצאה],\"מחקר ופיתוח\")","v":0},{"$f":"SUMIFS(OperatingExpenses[תקופה נוכחית],OperatingExpenses[סוג הוצאה],\"מחקר ופיתוח\")","v":0},{"$f":"SUMIFS(OperatingExpenses[תקופה נוכחית כאחוז מהמכירות],OperatingExpenses[סוג הוצאה],\"מחקר ופיתוח\")","v":{"v":0,"d":"0.00%"}},{"$f":"SUMIFS(OperatingExpenses[אחוז שינוי מהתקופה הקודמת],OperatingExpenses[סוג הוצאה],\"מחקר ופיתוח\")","v":{"v":0,"d":"0.00%"}},{"$f":"SUMIFS(OperatingExpenses[אחוז שינוי מהתקציב],OperatingExpenses[סוג הוצאה],\"מחקר ופיתוח\")","v":{"v":0,"d":"0.00%"}}]
[null,"סה\"כ הוצאות הנהלה וכלליות  [ה]",{"$f":"SUMIFS(OperatingExpenses[תקופה קודמת],OperatingExpenses[סוג הוצאה],\"General and Adminstrative\")","v":0},{"$f":"SUMIFS(OperatingExpenses[תקציב],OperatingExpenses[סוג הוצאה],\"General and Adminstrative\")","v":0},{"$f":"SUMIFS(OperatingExpenses[תקופה נוכחית],OperatingExpenses[סוג הוצאה],\"General and Adminstrative\")","v":0},{"$f":"SUMIFS(OperatingExpenses[תקופה נוכחית כאחוז מהמכירות],OperatingExpenses[סוג הוצאה],\"General and Adminstrative\")","v":{"v":0,"d":"0.00%"}},{"$f":"SUMIFS(OperatingExpenses[אחוז שינוי מהתקופה הקודמת],OperatingExpenses[סוג הוצאה],\"General and Adminstrative\")","v":{"v":0,"d":"0.00%"}},{"$f":"SUMIFS(OperatingExpenses[אחוז שינוי מהתקציב],OperatingExpenses[סוג הוצאה],\"General and Adminstrative\")","v":{"v":0,"d":"0.00%"}}]
[null,"סה\"כ הוצאות תפעוליות אחרות  [ת]",{"$f":"OperatingExpenses[[#Totals],[תקופה קודמת]]-SUM(C10:C12)","v":0},{"$f":"OperatingExpenses[[#Totals],[תקציב]]-SUM(D10:D12)","v":0},{"$f":"OperatingExpenses[[#Totals],[תקופה נוכחית]]-SUM(E10:E12)","v":0},{"$f":"OperatingExpenses[[#Totals],[תקופה נוכחית כאחוז מהמכירות]]-SUM(F10:F12)","v":{"v":0,"d":"0.00%"}},{"$f":"OperatingExpenses[[#Totals],[אחוז שינוי מהתקופה הקודמת]]-SUM(G10:G12)","v":{"v":0,"d":"0.00%"}},{"$f":"OperatingExpenses[[#Totals],[אחוז שינוי מהתקציב]]-SUM(H10:H12)","v":{"v":0,"d":"0.00%"}}]
[null,"הכנסות אחרות  [כ]",{"$f":"הכנסות[[#Totals],[תקופה קודמת]]","v":0},{"$f":"הכנסות[[#Totals],[תקציב]]","v":0},{"$f":"הכנסות[[#Totals],[תקופה נוכחית]]","v":0},{"$f":"הכנסות[[#Totals],[תקופה נוכחית כאחוז מהמכירות]]","v":{"v":0,"d":"0.00%"}},{"$f":"הכנסות[[#Totals],[אחוז שינוי מהתקופה הקודמת]]","v":{"v":0,"d":"0.00%"}},{"$f":"הכנסות[[#Totals],[אחוז שינוי מהתקציב]]","v":{"v":0,"d":"0.00%"}}]
[null,"סה\"כ מסים  [ס]",{"$f":"מסים[[#Totals],[תקופה קודמת]]","v":0},{"$f":"מסים[[#Totals],[תקציב]]","v":0},{"$f":"מסים[[#Totals],[תקופה נוכחית]]","v":0},{"$f":"מסים[[#Totals],[תקופה נוכחית כאחוז מהמכירות]]","v":{"v":0,"d":"0.00%"}},{"$f":"מסים[[#Totals],[אחוז שינוי מהתקופה הקודמת]]","v":{"v":0,"d":"0.00%"}},{"$f":"מסים[[#Totals],[אחוז שינוי מהתקציב]]","v":{"v":0,"d":"0.00%"}}]
[]
[null,"רווח ברוטו  [ש=ר-ע]",{"$f":"IFERROR(C8-C9,\"-\")","v":0},{"$f":"IFERROR(D8-D9,\"-\")","v":0},{"$f":"IFERROR(Total_Sales_Revenue-Total_Cost_Sales,\"-\")","v":0},{"$f":"IFERROR(IF(Total_Sales_Revenue=0,\"0.00%\",Total_Gross_Profit/Total_Sales_Revenue),\"-\")","v":"0.00%"},{"$f":"IFERROR(IF(C17=Total_Gross_Profit,0,IF(Total_Gross_Profit>C17,ABS((Total_Gross_Profit/C17)-1),IF(AND(Total_Gross_Profit<C17,C17<0),-((Total_Gross_Profit/C17)-1),(Total_Gross_Profit/C17)-1))),\"-\")","v":{"v":0,"d":"0.00%"}},{"$f":"IFERROR(IF(D17=Total_Gross_Profit,0,IF(Total_Gross_Profit>D17,ABS((Total_Gross_Profit/D17)-1),IF(AND(Total_Gross_Profit<D17,D17<0),-((Total_Gross_Profit/D17)-1),(Total_Gross_Profit/D17)-1))),\"-\")","v":{"v":0,"d":"0.00%"}}]
[null,"סה\"כ הוצאות תפעוליות  [צ=מ+פ+ה+ת]",{"$f":"IFERROR(C10+C11+C12+C13,\"-\")","v":0},{"$f":"IFERROR(D10+D11+D12+D13,\"-\")","v":0},{"$f":"IFERROR(Total_Sales_and_Marketing+Total_Research_and_Development+Total_General_and_Administrative+Total_Other_Expenses,\"-\")","v":0},{"$f":"IFERROR(IF(Total_Sales_Revenue=0,\"0.00%\",Total_Operating_Expenses/Total_Sales_Revenue),\"-\")","v":"0.00%"},{"$f":"IFERROR(IF(C18=Total_Operating_Expenses,0,IF(Total_Operating_Expenses>C18,ABS((Total_Operating_Expenses/C18)-1),IF(AND(Total_Operating_Expenses<C18,C18<0),-((Total_Operating_Expenses/C18)-1),(Total_Operating_Expenses/C18)-1))),\"-\")","v":{"v":0,"d":"0.00%"}},{"$f":"IFERROR(IF(D18=Total_Operating_Expenses,0,IF(Total_Operating_Expenses>D18,ABS((Total_Operating_Expenses/D18)-1),IF(AND(Total_Operating_Expenses<D18,D18<0),-((Total_Operating_Expenses/D18)-1),(Total_Operating_Expenses/D18)-1))),\"-\")","v":{"v":0,"d":"0.00%"}}]
[null,"הכנסה תפעולית  [ל=ר-צ]",{"$f":"IFERROR(C17-C18,\"-\")","v":0},{"$f":"IFERROR(D17-D18,\"-\")","v":0},{"$f":"IFERROR(Total_Gross_Profit-Total_Operating_Expenses,\"-\")","v":0},{"$f":"IFERROR(IF(Total_Sales_Revenue=0,\"0.00%\",Total_Income_Operations/Total_Sales_Revenue),\"-\")","v":"0.00%"},{"$f":"IFERROR(IF(C19=Total_Income_Operations,0,IF(Total_Income_Operations>C19,ABS((Total_Income_Operations/C19)-1),IF(AND(Total_Income_Operations<C19,C19<0),-((Total_Income_Operations/C19)-1),(Total_Income_Operations/C19)-1))),\"-\")","v":{"v":0,"d":"0.00%"}},{"$f":"IFERROR(IF(D19=Total_Income_Operations,0,IF(Total_Income_Operations>D19,ABS((Total_Income_Operations/D19)-1),IF(AND(Total_Income_Operations<D19,D19<0),-((Total_Income_Operations/D19)-1),(Total_Income_Operations/D19)-1))),\"-\")","v":{"v":0,"d":"0.00%"}}]
[null,"רווח נטו  [נ=ל+כ-ס]",{"$f":"IFERROR(C19+C14-C15,\"-\")","v":0},{"$f":"IFERROR(D19+D14-D15,\"-\")","v":0},{"$f":"Total_Income_Operations+Total_Other_Income-Total_Taxes","v":0},{"$f":"IFERROR(IF(Total_Sales_Revenue=0,\"0.00%\",Net_Profit/Total_Sales_Revenue),\"-\")","v":"0.00%"},{"$f":"IFERROR(IF(C20=Net_Profit,0,IF(Net_Profit>C20,ABS((Net_Profit/C20)-1),IF(AND(Net_Profit<C20,C20<0),-((Net_Profit/C20)-1),(Net_Profit/C20)-1))),\"-\")","v":{"v":0,"d":"0.00%"}},{"$f":"IFERROR(IF(D20=Net_Profit,0,IF(Net_Profit>D20,ABS((Net_Profit/D20)-1),IF(AND(Net_Profit<D20,D20<0),-((Net_Profit/D20)-1),(Net_Profit/D20)-1))),\"-\")","v":{"v":0,"d":"0.00%"}}]

{"sheet":"מכירות","index":1,"n_rows":13,"n_cols":9,"rows_kept":13,"merged":[[0,7,2,8]]}
[null,{"$f":"כותרת_חוברת_העבודה","v":"דוח רווח והפסד"}]
[null,{"$f":"שם_החברה","v":"שם החברה"},"באלפים"]
[null,"רווח ממכירות",{"$f":"IFERROR(רווח_ממכירות1,\"-\")","v":0}]
[null,"סוג רווח","תיאור","תקופה קודמת","תקציב","תקופה נוכחית","תקופה נוכחית כאחוז מהמכירות","אחוז שינוי מהתקופה הקודמת","אחוז שינוי מהתקציב"]
[null,"רווח ממכירות","מוצר/שירות 1",{"$nulls":3},{"$f":"IFERROR(IF(רווח_ממכירות[[#Totals],[תקופה נוכחית]]=0,\"-\",רווח_ממכירות[[#This Row],[תקופה נוכחית]]/רווח_ממכירות1),\"-\")","v":"-"},{"$f":"IFERROR(IF(רווח_ממכירות[[#This Row],[תקופה קודמת]]=רווח_ממכירות[[#This Row],[תקופה נוכחית]],0,IF(רווח_ממכירות[[#This Row],[תקופה נוכחית]]>רווח_ממכירות[[#This Row],[תקופה קודמת]],ABS((רווח_ממכירות[[#This Row],[תקופה נוכחית]]/רווח_ממכירות[[#This Row],[תקופה קודמת]])-1),IF(AND(רווח_ממכירות[[#This Row],[תקופה נוכחית]]<רווח_ממכירות[[#This Row],[תקופה קודמת]],רווח_ממכירות[[#This Row],[תקופה קודמת]]<0),-((רווח_ממכירות[[#This Row],[תקופה נוכחית]]/רווח_ממכירות[[#This Row],[תקופה קודמת]])-1),(רווח_ממכירות[[#This Row],[תקופה נוכחית]]/רווח_ממכירות[[#This Row],[תקופה קודמת]])-1))),\"-\")","v":{"v":0,"d":"0.00%"}},{"$f":"IFERROR(IF(רווח_ממכירות[[#This Row],[תקציב]]=רווח_ממכירות[[#This Row],[תקופה נוכחית]],0,IF(רווח_ממכירות[[#This Row],[תקופה נוכחית]]>רווח_ממכירות[[#This Row],[תקציב]],ABS((רווח_ממכירות[[#This Row],[תקופה נוכחית]]/רווח_ממכירות[[#This Row],[תקציב]])-1),IF(AND(רווח_ממכירות[[#This Row],[תקופה נוכחית]]<רווח_ממכירות[[#This Row],[תקציב]],רווח_ממכירות[[#This Row],[תקציב]]<0),-((רווח_ממכירות[[#This Row],[תקופה נוכחית]]/רווח_ממכירות[[#This Row],[תקציב]])-1),(רווח_ממכירות[[#This Row],[תקופה נוכחית]]/רווח_ממכירות[[#This Row],[תקציב]])-1))),\"-\")","v":{"v":0,"d":"0.00%"}}]
[null,"רווח ממכירות","מוצר/שירות 2",{"$nulls":3},{"$f":"IFERROR(IF(רווח_ממכירות[[#Totals],[תקופה נוכחית]]=0,\"-\",רווח_ממכירות[[#This Row],[תקופה נוכחית]]/רווח_ממכירות1),\"-\")","v":"-"},{"$f":"IFERROR(IF(רווח_ממכירות[[#This Row],[תקופה קודמת]]=רווח_ממכירות[[#This Row],[תקופה נוכחית]],0,IF(רווח_ממכירות[[#This Row],[תקופה נוכחית]]>רווח_ממכירות[[#This Row],[תקופה קודמת]],ABS((רווח_ממכירות[[#This Row],[תקופה נוכחית]]/רווח_ממכירות[[#This Row],[תקופה קודמת]])-1),IF(AND(רווח_ממכירות[[#This Row],[תקופה נוכחית]]<רווח_ממכירות[[#This Row],[תקופה קודמת]],רווח_ממכירות[[#This Row],[תקופה קודמת]]<0),-((רווח_ממכירות[[#This Row],[תקופה נוכחית]]/רווח_ממכירות[[#This Row],[תקופה קודמת]])-1),(רווח_ממכירות[[#This Row],[תקופה נוכחית]]/רווח_ממכירות[[#This Row],[תקופה קודמת]])-1))),\"-\")","v":{"v":0,"d":"0.00%"}},{"$f":"IFERROR(IF(רווח_ממכירות[[#This Row],[תקציב]]=רווח_ממכירות[[#This Row],[תקופה נוכחית]],0,IF(רווח_ממכירות[[#This Row],[תקופה נוכחית]]>רווח_ממכירות[[#This Row],[תקציב]],ABS((רווח_ממכירות[[#This Row],[תקופה נוכחית]]/רווח_ממכירות[[#This Row],[תקציב]])-1),IF(AND(רווח_ממכירות[[#This Row],[תקופה נוכחית]]<רווח_ממכירות[[#This Row],[תקציב]],רווח_ממכירות[[#This Row],[תקציב]]<0),-((רווח_ממכירות[[#This Row],[תקופה נוכחית]]/רווח_ממכירות[[#This Row],[תקציב]])-1),(רווח_ממכירות[[#This Row],[תקופה נוכחית]]/רווח_ממכירות[[#This Row],[תקציב]])-1))),\"-\")","v":{"v":0,"d":"0.00%"}}]
[null,"רווח ממכירות","מוצר/שירות 3",{"$nulls":3},{"$f":"IFERROR(IF(רווח_ממכירות[[#Totals],[תקופה נוכחית]]=0,\"-\",רווח_ממכירות[[#This Row],[תקופה נוכחית]]/רווח_ממכירות1),\"-\")","v":"-"},{"$f":"IFERROR(IF(רווח_ממכירות[[#This Row],[תקופה קודמת]]=רווח_ממכירות[[#This Row],[תקופה נוכחית]],0,IF(רווח_ממכירות[[#This Row],[תקופה נוכחית]]>רווח_ממכירות[[#This Row],[תקופה קודמת]],ABS((רווח_ממכירות[[#This Row],[תקופה נוכחית]]/רווח_ממכירות[[#This Row],[תקופה קודמת]])-1),IF(AND(רווח_ממכירות[[#This Row],[תקופה נוכחית]]<רווח_ממכירות[[#This Row],[תקופה קודמת]],רווח_ממכירות[[#This Row],[תקופה קודמת]]<0),-((רווח_ממכירות[[#This Row],[תקופה נוכחית]]/רווח_ממכירות[[#This Row],[תקופה קודמת]])-1),(רווח_ממכירות[[#This Row],[תקופה נוכחית]]/רווח_ממכירות[[#This Row],[תקופה קודמת]])-1))),\"-\")","v":{"v":0,"d":"0.00%"}},{"$f":"IFERROR(IF(רווח_ממכירות[[#This Row],[תקציב]]=רווח_ממכירות[[#This Row],[תקופה נוכחית]],0,IF(רווח_ממכירות[[#This Row],[תקופה נוכחית]]>רווח_ממכירות[[#This Row],[תקציב]],ABS((רווח_ממכירות[[#This Row],[תקופה נוכחית]]/רווח_ממכירות[[#This Row],[תקציב]])-1),IF(AND(רווח_ממכירות[[#This Row],[תקופה נוכחית]]<רווח_ממכירות[[#This Row],[תקציב]],רווח_ממכירות[[#This Row],[תקציב]]<0),-((רווח_ממכירות[[#This Row],[תקופה נוכחית]]/רווח_ממכירות[[#This Row],[תקציב]])-1),(רווח_ממכירות[[#This Row],[תקופה נוכחית]]/רווח_ממכירות[[#This Row],[תקציב]])-1))),\"-\")","v":{"v":0,"d":"0.00%"}}]
[null,"רווח ממכירות","מוצר/שירות 4",{"$nulls":3},{"$f":"IFERROR(IF(רווח_ממכירות[[#Totals],[תקופה נוכחית]]=0,\"-\",רווח_ממכירות[[#This Row],[תקופה נוכחית]]/רווח_ממכירות1),\"-\")","v":"-"},{"$f":"IFERROR(IF(רווח_ממכירות[[#This Row],[תקופה קודמת]]=רווח_ממכירות[[#This Row],[תקופה נוכחית]],0,IF(רווח_ממכירות[[#This Row],[תקופה נוכחית]]>רווח_ממכירות[[#This Row],[תקופה קודמת]],ABS((רווח_ממכירות[[#This Row],[תקופה נוכחית]]/רווח_ממכירות[[#This Row],[תקופה קודמת]])-1),IF(AND(רווח_ממכירות[[#This Row],[תקופה נוכחית]]<רווח_ממכירות[[#This Row],[תקופה קודמת]],רווח_ממכירות[[#This Row],[תקופה קודמת]]<0),-((רווח_ממכירות[[#This Row],[תקופה נוכחית]]/רווח_ממכירות[[#This Row],[תקופה קודמת]])-1),(רווח_ממכירות[[#This Row],[תקופה נוכחית]]/רווח_ממכירות[[#This Row],[תקופה קודמת]])-1))),\"-\")","v":{"v":0,"d":"0.00%"}},{"$f":"IFERROR(IF(רווח_ממכירות[[#This Row],[תקציב]]=רווח_ממכירות[[#This Row],[תקופה נוכחית]],0,IF(רווח_ממכירות[[#This Row],[תקופה נוכחית]]>רווח_ממכירות[[#This Row],[תקציב]],ABS((רווח_ממכירות[[#This Row],[תקופה נוכחית]]/רווח_ממכירות[[#This Row],[תקציב]])-1),IF(AND(רווח_ממכירות[[#This Row],[תקופה נוכחית]]<רווח_ממכירות[[#This Row],[תקציב]],רווח_ממכירות[[#This Row],[תקציב]]<0),-((רווח_ממכירות[[#This Row],[תקופה נוכחית]]/רווח_ממכירות[[#This Row],[תקציב]])-1),(רווח_ממכירות[[#This Row],[תקופה נוכחית]]/רווח_ממכירות[[#This Row],[תקציב]])-1))),\"-\")","v":{"v":0,"d":"0.00%"}}]
[null,"עלות מכירות","מוצר/שירות 1",{"$nulls":3},{"$f":"IFERROR(IF(רווח_ממכירות[[#Totals],[תקופה נוכחית]]=0,\"-\",רווח_ממכירות[[#This Row],[תקופה נוכחית]]/רווח_ממכירות1),\"-\")","v":"-"},{"$f":"IFERROR(IF(רווח_ממכירות[[#This Row],[תקופה קודמת]]=רווח_ממכירות[[#This Row],[תקופה נוכחית]],0,IF(רווח_ממכירות[[#This Row],[תקופה נוכחית]]>רווח_ממכירות[[#This Row],[תקופה קודמת]],ABS((רווח_ממכירות[[#This Row],[תקופה נוכחית]]/רווח_ממכירות[[#This Row],[תקופה קודמת]])-1),IF(AND(רווח_ממכירות[[#This Row],[תקופה נוכחית]]<רווח_ממכירות[[#This Row],[תקופה קודמת]],רווח_ממכירות[[#This Row],[תקופה קודמת]]<0),-((רווח_ממכירות[[#This Row],[תקופה נוכחית]]/רווח_ממכירות[[#This Row],[תקופה קודמת]])-1),(רווח_ממכירות[[#This Row],[תקופה נוכחית]]/רווח_ממכירות[[#This Row],[תקופה קודמת]])-1))),\"-\")","v":{"v":0,"d":"0.00%"}},{"$f":"IFERROR(IF(רווח_ממכירות[[#This Row],[תקציב]]=רווח_ממכירות[[#This Row],[תקופה נוכחית]],0,IF(רווח_ממכירות[[#This Row],[תקופה נוכחית]]>רווח_ממכירות[[#This Row],[תקציב]],ABS((רווח_ממכירות[[#This Row],[תקופה נוכחית]]/רווח_ממכירות[[#This Row],[תקציב]])-1),IF(AND(רווח_ממכירות[[#This Row],[תקופה נוכחית]]<רווח_ממכירות[[#This Row],[תקציב]],רווח_ממכירות[[#This Row],[תקציב]]<0),-((רווח_ממכירות[[#This Row],[תקופה נוכחית]]/רווח_ממכירות[[#This Row],[תקציב]])-1),(רווח_ממכירות[[#This Row],[תקופה נוכחית]]/רווח_ממכירות[[#This Row],[תקציב]])-1))),\"-\")","v":{"v":0,"d":"0.00%"}}]
[null,"עלות מכירות","מוצר/שירות 2",{"$nulls":3},{"$f":"IFERROR(IF(רווח_ממכירות[[#Totals],[תקופה נוכחית]]=0,\"-\",רווח_ממכירות[[#This Row],[תקופה נוכחית]]/רווח_ממכירות1),\"-\")","v":"-"},{"$f":"IFERROR(IF(רווח_ממכירות[[#This Row],[תקופה קודמת]]=רווח_ממכירות[[#This Row],[תקופה נוכחית]],0,IF(רווח_ממכירות[[#This Row],[תקופה נוכחית]]>רווח_ממכירות[[#This Row],[תקופה קודמת]],ABS((רווח_ממכירות[[#This Row],[תקופה נוכחית]]/רווח_ממכירות[[#This Row],[תקופה קודמת]])-1),IF(AND(רווח_ממכירות[[#This Row],[תקופה נוכחית]]<רווח_ממכירות[[#This Row],[תקופה קודמת]],רווח_ממכירות[[#This Row],[תקופה קודמת]]<0),-((רווח_ממכירות[[#This Row],[תקופה נוכחית]]/רווח_ממכירות[[#This Row],[תקופה קודמת]])-1),(רווח_ממכירות[[#This Row],[תקופה נוכחית]]/רווח_ממכירות[[#This Row],[תקופה קודמת]])-1))),\"-\")","v":{"v":0,"d":"0.00%"}},{"$f":"IFERROR(IF(רווח_ממכירות[[#This Row],[תקציב]]=רווח_ממכירות[[#This Row],[תקופה נוכחית]],0,IF(רווח_ממכירות[[#This Row],[תקופה נוכחית]]>רווח_ממכירות[[#This Row],[תקציב]],ABS((רווח_ממכירות[[#This Row],[תקופה נוכחית]]/רווח_ממכירות[[#This Row],[תקציב]])-1),IF(AND(רווח_ממכירות[[#This Row],[תקופה נוכחית]]<רווח_ממכירות[[#This Row],[תקציב]],רווח_ממכירות[[#This Row],[תקציב]]<0),-((רווח_ממכירות[[#This Row],[תקופה נוכחית]]/רווח_ממכירות[[#This Row],[תקציב]])-1),(רווח_ממכירות[[#This Row],[תקופה נוכחית]]/רווח_ממכירות[[#This Row],[תקציב]])-1))),\"-\")","v":{"v":0,"d":"0.00%"}}]
[null,"עלות מכירות","מוצר/שירות 3",{"$nulls":3},{"$f":"IFERROR(IF(רווח_ממכירות[[#Totals],[תקופה נוכחית]]=0,\"-\",רווח_ממכירות[[#This Row],[תקופה נוכחית]]/רווח_ממכירות1),\"-\")","v":"-"},{"$f":"IFERROR(IF(רווח_ממכירות[[#This Row],[תקופה קודמת]]=רווח_ממכירות[[#This Row],[תקופה נוכחית]],0,IF(רווח_ממכירות[[#This Row],[תקופה נוכחית]]>רווח_ממכירות[[#This Row],[תקופה קודמת]],ABS((רווח_ממכירות[[#This Row],[תקופה נוכחית]]/רווח_ממכירות[[#This Row],[תקופה קודמת]])-1),IF(AND(רווח_ממכירות[[#This Row],[תקופה נוכחית]]<רווח_ממכירות[[#This Row],[תקופה קודמת]],רווח_ממכירות[[#This Row],[תקופה קודמת]]<0),-((רווח_ממכירות[[#This Row],[תקופה נוכחית]]/רווח_ממכירות[[#This Row],[תקופה קודמת]])-1),(רווח_ממכירות[[#This Row],[תקופה נוכחית]]/רווח_ממכירות[[#This Row],[תקופה קודמת]])-1))),\"-\")","v":{"v":0,"d":"0.00%"}},{"$f":"IFERROR(IF(רווח_ממכירות[[#This Row],[תקציב]]=רווח_ממכירות[[#This Row],[תקופה נוכחית]],0,IF(רווח_ממכירות[[#This Row],[תקופה נוכחית]]>רווח_ממכירות[[#This Row],[תקציב]],ABS((רווח_ממכירות[[#This Row],[תקופה נוכחית]]/רווח_ממכירות[[#This Row],[תקציב]])-1),IF(AND(רווח_ממכירות[[#This Row],[תקופה נוכחית]]<רווח_ממכירות[[#This Row],[תקציב]],רווח_ממכירות[[#This Row],[תקציב]]<0),-((רווח_ממכירות[[#This Row],[תקופה נוכחית]]/רווח_ממכירות[[#This Row],[תקציב]])-1),(רווח_ממכירות[[#This Row],[תקופה נוכחית]]/רווח_ממכירות[[#This Row],[תקציב]])-1))),\"-\")","v":{"v":0,"d":"0.00%"}}]
[null,"עלות מכירות","מוצר/שירות 4",{"$nulls":3},{"$f":"IFERROR(IF(רווח_ממכירות[[#Totals],[תקופה נוכחית]]=0,\"-\",רווח_ממכירות[[#This Row],[תקופה נוכחית]]/רווח_ממכירות1),\"-\")","v":"-"},{"$f":"IFERROR(IF(רווח_ממכירות[[#This Row],[תקופה קודמת]]=רווח_ממכירות[[#This Row],[תקופה נוכחית]],0,IF(רווח_ממכירות[[#This Row],[תקופה נוכחית]]>רווח_ממכירות[[#This Row],[תקופה קודמת]],ABS((רווח_ממכירות[[#This Row],[תקופה נוכחית]]/רווח_ממכירות[[#This Row],[תקופה קודמת]])-1),IF(AND(רווח_ממכירות[[#This Row],[תקופה נוכחית]]<רווח_ממכירות[[#This Row],[תקופה קודמת]],רווח_ממכירות[[#This Row],[תקופה קודמת]]<0),-((רווח_ממכירות[[#This Row],[תקופה נוכחית]]/רווח_ממכירות[[#This Row],[תקופה קודמת]])-1),(רווח_ממכירות[[#This Row],[תקופה נוכחית]]/רווח_ממכירות[[#This Row],[תקופה קודמת]])-1))),\"-\")","v":{"v":0,"d":"0.00%"}},{"$f":"IFERROR(IF(רווח_ממכירות[[#This Row],[תקציב]]=רווח_ממכירות[[#This Row],[תקופה נוכחית]],0,IF(רווח_ממכירות[[#This Row],[תקופה נוכחית]]>רווח_ממכירות[[#This Row],[תקציב]],ABS((רווח_ממכירות[[#This Row],[תקופה נוכחית]]/רווח_ממכירות[[#This Row],[תקציב]])-1),IF(AND(רווח_ממכירות[[#This Row],[תקופה נוכחית]]<רווח_ממכירות[[#This Row],[תקציב]],רווח_ממכירות[[#This Row],[תקציב]]<0),-((רווח_ממכירות[[#This Row],[תקופה נוכחית]]/רווח_ממכירות[[#This Row],[תקציב]])-1),(רווח_ממכירות[[#This Row],[תקופה נוכחית]]/רווח_ממכירות[[#This Row],[תקציב]])-1))),\"-\")","v":{"v":0,"d":"0.00%"}}]
[null,"סה\"כ רווח ממכירות",null,{"$f":"SUBTOTAL(109,רווח_ממכירות[תקופה קודמת])","v":0},{"$f":"SUBTOTAL(109,רווח_ממכירות[תקציב])","v":0},{"$f":"SUBTOTAL(109,רווח_ממכירות[תקופה נוכחית])","v":0},{"$f":"SUBTOTAL(109,רווח_ממכירות[תקופה נוכחית כאחוז מהמכירות])","v":{"v":0,"d":"0.00%"}},{"$f":"SUBTOTAL(109,רווח_ממכירות[אחוז שינוי מהתקופה הקודמת])","v":{"v":0,"d":"0.00%"}},{"$f":"SUBTOTAL(109,רווח_ממכירות[אחוז שינוי מהתקציב])","v":{"v":0,"d":"0.00%"}}]

{"sheet":"הכנסות","index":2,"n_rows":7,"n_cols":9,"rows_kept":7,"merged":[[0,7,2,8]]}
[null,{"$f":"כותרת_חוברת_העבודה","v":"דוח רווח והפסד"}]
[null,{"$f":"שם_החברה","v":"שם החברה"},"באלפים"]
[null,"הכנסות",{"$f":"IFERROR(הכנסות[[#Totals],[תקופה נוכחית]],\"-\")","v":0}]
[null,"סוג הכנסה","תיאור","תקופה קודמת","תקציב","תקופה נוכחית","תקופה נוכחית כאחוז מהמכירות","אחוז שינוי מהתקופה הקודמת","אחוז שינוי מהתקציב"]
[null,"הכנסות","הכנסות אחרות",{"$nulls":3},{"$f":"IFERROR(IF(רווח_ממכירות1=0,\"-\",הכנסות[[#This Row],[תקופה נוכחית]]/רווח_ממכירות1),\"-\")","v":"-"},{"$f":"IFERROR(IF(הכנסות[[#This Row],[תקופה קודמת]]=הכנסות[[#This Row],[תקופה נוכחית]],0,IF(הכנסות[[#This Row],[תקופה נוכחית]]>הכנסות[[#This Row],[תקופה קודמת]],ABS((הכנסות[[#This Row],[תקופה נוכחית]]/הכנסות[[#This Row],[תקופה קודמת]])-1),IF(AND(הכנסות[[#This Row],[תקופה נוכחית]]<הכנסות[[#This Row],[תקופה קודמת]],הכנסות[[#This Row],[תקופה קודמת]]<0),-((הכנסות[[#This Row],[תקופה נוכחית]]/הכנסות[[#This Row],[תקופה קודמת]])-1),(הכנסות[[#This Row],[תקופה נוכחית]]/הכנסות[[#This Row],[תקופה קודמת]])-1))),\"-\")","v":{"v":0,"d":"0.00%"}},{"$f":"IFERROR(IF(הכנסות[[#This Row],[תקציב]]=הכנסות[[#This Row],[תקופה נוכחית]],0,IF(הכנסות[[#This Row],[תקופה נוכחית]]>הכנסות[[#This Row],[תקציב]],ABS((הכנסות[[#This Row],[תקופה נוכחית]]/הכנסות[[#This Row],[תקציב]])-1),IF(AND(הכנסות[[#This Row],[תקופה נוכחית]]<הכנסות[[#This Row],[תקציב]],הכנסות[[#This Row],[תקציב]]<0),-((הכנסות[[#This Row],[תקופה נוכחית]]/הכנסות[[#This Row],[תקציב]])-1),(הכנסות[[#This Row],[תקופה נוכחית]]/הכנסות[[#This Row],[תקציב]])-1))),\"-\")","v":{"v":0,"d":"0.00%"}}]
[{"$nulls":6},{"$f":"IFERROR(IF(רווח_ממכירות1=0,\"-\",הכנסות[[#This Row],[תקופה נוכחית]]/רווח_ממכירות1),\"-\")","v":"-"},{"$f":"IFERROR(IF(הכנסות[[#This Row],[תקופה קודמת]]=הכנסות[[#This Row],[תקופה נוכחית]],0,IF(הכנסות[[#This Row],[תקופה נוכחית]]>הכנסות[[#This Row],[תקופה קודמת]],ABS((הכנסות[[#This Row],[תקופה נוכחית]]/הכנסות[[#This Row],[תקופה קודמת]])-1),IF(AND(הכנסות[[#This Row],[תקופה נוכחית]]<הכנסות[[#This Row],[תקופה קודמת]],הכנסות[[#This Row],[תקופה קודמת]]<0),-((הכנסות[[#This Row],[תקופה נוכחית]]/הכנסות[[#This Row],[תקופה קודמת]])-1),(הכנסות[[#This Row],[תקופה נוכחית]]/הכנסות[[#This Row],[תקופה קודמת]])-1))),\"-\")","v":{"v":0,"d":"0.00%"}},{"$f":"IFERROR(IF(הכנסות[[#This Row],[תקציב]]=הכנסות[[#This Row],[תקופה נוכחית]],0,IF(הכנסות[[#This Row],[תקופה נוכחית]]>הכנסות[[#This Row],[תקציב]],ABS((הכנסות[[#This Row],[תקופה נוכחית]]/הכנסות[[#This Row],[תקציב]])-1),IF(AND(הכנסות[[#This Row],[תקופה נוכחית]]<הכנסות[[#This Row],[תקציב]],הכנסות[[#This Row],[תקציב]]<0),-((הכנסות[[#This Row],[תקופה נוכחית]]/הכנסות[[#This Row],[תקציב]])-1),(הכנסות[[#This Row],[תקופה נוכחית]]/הכנסות[[#This Row],[תקציב]])-1))),\"-\")","v":{"v":0,"d":"0.00%"}}]
[null,"סה\"כ הכנסות ממכירות",null,{"$f":"SUBTOTAL(109,הכנסות[תקופה קודמת])","v":0},{"$f":"SUBTOTAL(109,הכנסות[תקציב])","v":0},{"$f":"SUBTOTAL(109,הכנסות[תקופה נוכחית])","v":0},{"$f":"SUBTOTAL(109,הכנסות[תקופה נוכחית כאחוז מהמכירות])","v":{"v":0,"d":"0.00%"}},{"$f":"SUBTOTAL(109,הכנסות[אחוז שינוי מהתקופה הקודמת])","v":{"v":0,"d":"0.00%"}},{"$f":"SUBTOTAL(109,הכנסות[אחוז שינוי מהתקציב])","v":{"v":0,"d":"0.00%"}}]

{"sheet":"הוצאות","index":3,"n_rows":25,"n_cols":9,"rows_kept":25,"merged":[[0,7,2,8]]}
[null,{"$f":"כותרת_חוברת_העבודה","v":"דוח רווח והפסד"}]
[null,{"$f":"שם_החברה","v":"שם החברה"},"באלפים"]
[null,"הוצאות תפעוליות",{"$f":"IFERROR(OperatingExpenses[[#Totals],[תקופה נוכחית]],\"-\")","v":0}]
[null,"סוג הוצאה","תיאור","תקופה קודמת","תקציב","תקופה נוכחית","תקופה נוכחית כאחוז מהמכירות","אחוז שינוי מהתקופה הקודמת","אחוז שינוי מהתקציב"]
[null,"מכירות ושיווק","פרסום",{"$nulls":3},{"$f":"IFERROR(IF(רווח_ממכירות1=0,\"-\",OperatingExpenses[[#This Row],[תקופה נוכחית]]/רווח_ממכירות1),\"-\")","v":"-"},{"$f":"IFERROR(IF(OperatingExpenses[[#This Row],[תקופה קודמת]]=OperatingExpenses[[#This Row],[תקופה נוכחית]],0,IF(OperatingExpenses[[#This Row],[תקופה נוכחית]]>OperatingExpenses[[#This Row],[תקופה קודמת]],ABS((OperatingExpenses[[#This Row],[תקופה נוכחית]]/OperatingExpenses[[#This Row],[תקופה קודמת]])-1),IF(AND(OperatingExpenses[[#This Row],[תקופה נוכחית]]<OperatingExpenses[[#This Row],[תקופה קודמת]],OperatingExpenses[[#This Row],[תקופה קודמת]]<0),-((OperatingExpenses[[#This Row],[תקופה נוכחית]]/OperatingExpenses[[#This Row],[תקופה קודמת]])-1),(OperatingExpenses[[#This Row],[תקופה נוכחית]]/OperatingExpenses[[#This Row],[תקופה קודמת]])-1))),\"-\")","v":{"v":0,"d":"0.00%"}},{"$f":"IFERROR(IF(OperatingExpenses[[#This Row],[תקציב]]=OperatingExpenses[[#This Row],[תקופה נוכחית]],0,IF(OperatingExpenses[[#This Row],[תקופה נוכחית]]>OperatingExpenses[[#This Row],[תקציב]],ABS((OperatingExpenses[[#This Row],[תקופה נוכחית]]/OperatingExpenses[[#This Row],[תקציב]])-1),IF(AND(OperatingExpenses[[#This Row],[תקופה נוכחית]]<OperatingExpenses[[#This Row],[תקציב]],OperatingExpenses[[#This Row],[תקציב]]<0),-((OperatingExpenses[[#This Row],[תקופה נוכחית]]/OperatingExpenses[[#This Row],[תקציב]])-1),(OperatingExpenses[[#This Row],[תקופה נוכחית]]/OperatingExpenses[[#This Row],[תקציב]])-1))),\"-\")","v":{"v":0,"d":"0.00%"}}]
[null,"מכירות ושיווק","שיווק ישיר",{"$nulls":3},{"$f":"IFERROR(IF(רווח_ממכירות1=0,\"-\",OperatingExpenses[[#This Row],[תקופה נוכחית]]/רווח_ממכירות1),\"-\")","v":"-"},{"$f":"IFERROR(IF(OperatingExpenses[[#This Row],[תקופה קודמת]]=OperatingExpenses[[#This Row],[תקופה נוכחית]],0,IF(OperatingExpenses[[#This Row],[תקופה נוכחית]]>OperatingExpenses[[#This Row],[תקופה קודמת]],ABS((OperatingExpenses[[#This Row],[תקופה נוכחית]]/OperatingExpenses[[#This Row],[תקופה קודמת]])-1),IF(AND(OperatingExpenses[[#This Row],[תקופה נוכחית]]<OperatingExpenses[[#This Row],[תקופה קודמת]],OperatingExpenses[[#This Row],[תקופה קודמת]]<0),-((OperatingExpenses[[#This Row],[תקופה נוכחית]]/OperatingExpenses[[#This Row],[תקופה קודמת]])-1),(OperatingExpenses[[#This Row],[תקופה נוכחית]]/OperatingExpenses[[#This Row],[תקופה קודמת]])-1))),\"-\")","v":{"v":0,"d":"0.00%"}},{"$f":"IFERROR(IF(OperatingExpenses[[#This Row],[תקציב]]=OperatingExpenses[[#This Row],[תקופה נוכחית]],0,IF(OperatingExpenses[[#This Row],[תקופה נוכחית]]>OperatingExpenses[[#This Row],[תקציב]],ABS((OperatingExpenses[[#This Row],[תקופה נוכחית]]/OperatingExpenses[[#This Row],[תקציב]])-1),IF(AND(OperatingExpenses[[#This Row],[תקופה נוכחית]]<OperatingExpenses[[#This Row],[תקציב]],OperatingExpenses[[#This Row],[תקציב]]<0),-((OperatingExpenses[[#This Row],[תקופה נוכחית]]/OperatingExpenses[[#This Row],[תקציב]])-1),(OperatingExpenses[[#This Row],[תקופה נוכחית]]/OperatingExpenses[[#This Row],[תקציב]])-1))),\"-\")","v":{"v":0,"d":"0.00%"}}]
[null,"מכירות ושיווק","הוצאות אחרות (ציין)",{"$nulls":3},{"$f":"IFERROR(IF(רווח_ממכירות1=0,\"-\",OperatingExpenses[[#This Row],[תקופה נוכחית]]/רווח_ממכירות1),\"-\")","v":"-"},{"$f":"IFERROR(IF(OperatingExpenses[[#This Row],[תקופה קודמת]]=OperatingExpenses[[#This Row],[תקופה נוכחית]],0,IF(OperatingExpenses[[#This Row],[תקופה נוכחית]]>OperatingExpenses[[#This Row],[תקופה קודמת]],ABS((OperatingExpenses[[#This Row],[תקופה נוכחית]]/OperatingExpenses[[#This Row],[תקופה קודמת]])-1),IF(AND(OperatingExpenses[[#This Row],[תקופה נוכחית]]<OperatingExpenses[[#This Row],[תקופה קודמת]],OperatingExpenses[[#This Row],[תקופה קודמת]]<0),-((OperatingExpenses[[#This Row],[תקופה נוכחית]]/OperatingExpenses[[#This Row],[תקופה קודמת]])-1),(OperatingExpenses[[#This Row],[תקופה נוכחית]]/OperatingExpenses[[#This Row],[תקופה קודמת]])-1))),\"-\")","v":{"v":0,"d":"0.00%"}},{"$f":"IFERROR(IF(OperatingExpenses[[#This Row],[תקציב]]=OperatingExpenses[[#This Row],[תקופה נוכחית]],0,IF(OperatingExpenses[[#This Row],[תקופה נוכחית]]>OperatingExpenses[[#This Row],[תקציב]],ABS((OperatingExpenses[[#This Row],[תקופה נוכחית]]/OperatingExpenses[[#This Row],[תקציב]])-1),IF(AND(OperatingExpenses[[#This Row],[תקופה נוכחית]]<OperatingExpenses[[#This Row],[תקציב]],OperatingExpenses[[#This Row],[תקציב]]<0),-((OperatingExpenses[[#This Row],[תקופה נוכחית]]/OperatingExpenses[[#This Row],[תקציב]])-1),(OperatingExpenses[[#This Row],[תקופה נוכחית]]/OperatingExpenses[[#This Row],[תקציב]])-1))),\"-\")","v":{"v":0,"d":"0.00%"}}]
[null,"מכירות ושיווק","הוצאות אחרות (ציין)",{"$nulls":3},{"$f":"IFERROR(IF(רווח_ממכירות1=0,\"-\",OperatingExpenses[[#This Row],[תקופה נוכחית]]/רווח_ממכירות1),\"-\")","v":"-"},{"$f":"IFERROR(IF(OperatingExpenses[[#This Row],[תקופה קודמת]]=OperatingExpenses[[#This Row],[תקופה נוכחית]],0,IF(OperatingExpenses[[#This Row],[תקופה נוכחית]]>OperatingExpenses[[#This Row],[תקופה קודמת]],ABS((OperatingExpenses[[#This Row],[תקופה נוכחית]]/OperatingExpenses[[#This Row],[תקופה קודמת]])-1),IF(AND(OperatingExpenses[[#This Row],[תקופה נוכחית]]<OperatingExpenses[[#This Row],[תקופה קודמת]],OperatingExpenses[[#This Row],[תקופה קודמת]]<0),-((OperatingExpenses[[#This Row],[תקופה נוכחית]]/OperatingExpenses[[#This Row],[תקופה קודמת]])-1),(OperatingExpenses[[#This Row],[תקופה נוכחית]]/OperatingExpenses[[#This Row],[תקופה קודמת]])-1))),\"-\")","v":{"v":0,"d":"0.00%"}},{"$f":"IFERROR(IF(OperatingExpenses[[#This Row],[תקציב]]=OperatingExpenses[[#This Row],[תקופה נוכחית]],0,IF(OperatingExpenses[[#This Row],[תקופה נוכחית]]>OperatingExpenses[[#This Row],[תקציב]],ABS((OperatingExpenses[[#This Row],[תקופה נוכחית]]/OperatingExpenses[[#This Row],[תקציב]])-1),IF(AND(OperatingExpenses[[#This Row],[תקופה נוכחית]]<OperatingExpenses[[#This Row],[תקציב]],OperatingExpenses[[#This Row],[תקציב]]<0),-((OperatingExpenses[[#This Row],[תקופה נוכחית]]/OperatingExpenses[[#This Row],[תקציב]])-1),(OperatingExpenses[[#This Row],[תקופה נוכחית]]/OperatingExpenses[[#This Row],[תקציב]])-1))),\"-\")","v":{"v":0,"d":"0.00%"}}]
[null,"מחקר ופיתוח","רשיונות טכנולוגיה",{"$nulls":3},{"$f":"IFERROR(IF(רווח_ממכירות1=0,\"-\",OperatingExpenses[[#This Row],[תקופה נוכחית]]/רווח_ממכירות1),\"-\")","v":"-"},{"$f":"IFERROR(IF(OperatingExpenses[[#This Row],[תקופה קודמת]]=OperatingExpenses[[#This Row],[תקופה נוכחית]],0,IF(OperatingExpenses[[#This Row],[תקופה נוכחית]]>OperatingExpenses[[#This Row],[תקופה קודמת]],ABS((OperatingExpenses[[#This Row],[תקופה נוכחית]]/OperatingExpenses[[#This Row],[תקופה קודמת]])-1),IF(AND(OperatingExpenses[[#This Row],[תקופה נוכחית]]<OperatingExpenses[[#This Row],[תקופה קודמת]],OperatingExpenses[[#This Row],[תקופה קודמת]]<0),-((OperatingExpenses[[#This Row],[תקופה נוכחית]]/OperatingExpenses[[#This Row],[תקופה קודמת]])-1),(OperatingExpenses[[#This Row],[תקופה נוכחית]]/OperatingExpenses[[#This Row],[תקופה קודמת]])-1))),\"-\")","v":{"v":0,"d":"0.00%"}},{"$f":"IFERROR(IF(OperatingExpenses[[#This Row],[תקציב]]=OperatingExpenses[[#This Row],[תקופה נוכחית]],0,IF(OperatingExpenses[[#This Row],[תקופה נוכחית]]>OperatingExpenses[[#This Row],[תקציב]],ABS((OperatingExpenses[[#This Row],[תקופה נוכחית]]/OperatingExpenses[[#This Row],[תקציב]])-1),IF(AND(OperatingExpenses[[#This Row],[תקופה נוכחית]]<OperatingExpenses[[#This Row],[תקציב]],OperatingExpenses[[#This Row],[תקציב]]<0),-((OperatingExpenses[[#This Row],[תקופה נוכחית]]/OperatingExpenses[[#This Row],[תקציב]])-1),(OperatingExpenses[[#This Row],[תקופה נוכחית]]/OperatingExpenses[[#This Row],[תקציב]])-1))),\"-\")","v":{"v":0,"d":"0.00%"}}]
[null,"מחקר ופיתוח","פטנטים ",{"$nulls":3},{"$f":"IFERROR(IF(רווח_ממכירות1=0,\"-\",OperatingExpenses[[#This Row],[תקופה נוכחית]]/רווח_ממכירות1),\"-\")","v":"-"},{"$f":"IFERROR(IF(OperatingExpenses[[#This Row],[תקופה קודמת]]=OperatingExpenses[[#This Row],[תקופה נוכחית]],0,IF(OperatingExpenses[[#This Row],[תקופה נוכחית]]>OperatingExpenses[[#This Row],[תקופה קודמת]],ABS((OperatingExpenses[[#This Row],[תקופה נוכחית]]/OperatingExpenses[[#This Row],[תקופה קודמת]])-1),IF(AND(OperatingExpenses[[#This Row],[תקופה נוכחית]]<OperatingExpenses[[#This Row],[תקופה קודמת]],OperatingExpenses[[#This Row],[תקופה קודמת]]<0),-((OperatingExpenses[[#This Row],[תקופה נוכחית]]/OperatingExpenses[[#This Row],[תקופה קודמת]])-1),(OperatingExpenses[[#This Row],[תקופה נוכחית]]/OperatingExpenses[[#This Row],[תקופה קודמת]])-1))),\"-\")","v":{"v":0,"d":"0.00%"}},{"$f":"IFERROR(IF(OperatingExpenses[[#This Row],[תקציב]]=OperatingExpenses[[#This Row],[תקופה נוכחית]],0,IF(OperatingExpenses[[#This Row],[תקופה נוכחית]]>OperatingExpenses[[#This Row],[תקציב]],ABS((OperatingExpenses[[#This Row],[תקופה נוכחית]]/OperatingExpenses[[#This Row],[תקציב]])-1),IF(AND(OperatingExpenses[[#This Row],[תקופה נוכחית]]<OperatingExpenses[[#This Row],[תקציב]],OperatingExpenses[[#This Row],[תקציב]]<0),-((OperatingExpenses[[#This Row],[תקופה נוכחית]]/OperatingExpenses[[#This Row],[תקציב]])-1),(OperatingExpenses[[#This Row],[תקופה נוכחית]]/OperatingExpenses[[#This Row],[תקציב]])-1))),\"-\")","v":{"v":0,"d":"0.00%"}}]
[null,"מחקר ופיתוח","הוצאות אחרות (ציין)",{"$nulls":3},{"$f":"IFERROR(IF(רווח_ממכירות1=0,\"-\",OperatingExpenses[[#This Row],[תקופה נוכחית]]/רווח_ממכירות1),\"-\")","v":"-"},{"$f":"IFERROR(IF(OperatingExpenses[[#This Row],[תקופה קודמת]]=OperatingExpenses[[#This Row],[תקופה נוכחית]],0,IF(OperatingExpenses[[#This Row],[תקופה נוכחית]]>OperatingExpenses[[#This Row],[תקופה קודמת]],ABS((OperatingExpenses[[#This Row],[תקופה נוכחית]]/OperatingExpenses[[#This Row],[תקופה קודמת]])-1),IF(AND(OperatingExpenses[[#This Row],[תקופה נוכחית]]<OperatingExpenses[[#This Row],[תקופה קודמת]],OperatingExpenses[[#This Row],[תקופה קודמת]]<0),-((OperatingExpenses[[#This Row],[תקופה נוכחית]]/OperatingExpenses[[#This Row],[תקופה קודמת]])-1),(OperatingExpenses[[#This Row],[תקופה נוכחית]]/OperatingExpenses[[#This Row],[תקופה קודמת]])-1))),\"-\")","v":{"v":0,"d":"0.00%"}},{"$f":"IFERROR(IF(OperatingExpenses[[#This Row],[תקציב]]=OperatingExpenses[[#This Row],[תקופה נוכחית]],0,IF(OperatingExpenses[[#This Row],[תקופה נוכחית]]>OperatingExpenses[[#This Row],[תקציב]],ABS((OperatingExpenses[[#This Row],[תקופה נוכחית]]/OperatingExpenses[[#This Row],[תקציב]])-1),IF(AND(OperatingExpenses[[#This Row],[תקופה נוכחית]]<OperatingExpenses[[#This Row],[תקציב]],OperatingExpenses[[#This Row],[תקציב]]<0),-((OperatingExpenses[[#This Row],[תקופה נוכחית]]/OperatingExpenses[[#This Row],[תקציב]])-1),(OperatingExpenses[[#This Row],[תקופה נוכחית]]/OperatingExpenses[[#This Row],[תקציב]])-1))),\"-\")","v":{"v":0,"d":"0.00%"}}]
[null,"מחקר ופיתוח","הוצאות אחרות (ציין)",{"$nulls":3},{"$f":"IFERROR(IF(רווח_ממכירות1=0,\"-\",OperatingExpenses[[#This Row],[תקופה נוכחית]]/רווח_ממכירות1),\"-\")","v":"-"},{"$f":"IFERROR(IF(OperatingExpenses[[#This Row],[תקופה קודמת]]=OperatingExpenses[[#This Row],[תקופה נוכחית]],0,IF(OperatingExpenses[[#This Row],[תקופה נוכחית]]>OperatingExpenses[[#This Row],[תקופה קודמת]],ABS((OperatingExpenses[[#This Row],[תקופה נוכחית]]/OperatingExpenses[[#This Row],[תקופה קודמת]])-1),IF(AND(OperatingExpenses[[#This Row],[תקופה נוכחית]]<OperatingExpenses[[#This Row],[תקופה קודמת]],OperatingExpenses[[#This Row],[תקופה קודמת]]<0),-((OperatingExpenses[[#This Row],[תקופה נוכחית]]/OperatingExpenses[[#This Row],[תקופה קודמת]])-1),(OperatingExpenses[[#This Row],[תקופה נוכחית]]/OperatingExpenses[[#This Row],[תקופה קודמת]])-1))),\"-\")","v":{"v":0,"d":"0.00%"}},{"$f":"IFERROR(IF(OperatingExpenses[[#This Row],[תקציב]]=OperatingExpenses[[#This Row],[תקופה נוכחית]],0,IF(OperatingExpenses[[#This Row],[תקופה נוכחית]]>OperatingExpenses[[#This Row],[תקציב]],ABS((OperatingExpenses[[#This Row],[תקופה נוכחית]]/OperatingExpenses[[#This Row],[תקציב]])-1),IF(AND(OperatingExpenses[[#This Row],[תקופה נוכחית]]<OperatingExpenses[[#This Row],[תקציב]],OperatingExpenses[[#This Row],[תקציב]]<0),-((OperatingExpenses[[#This Row],[תקופה נוכחית]]/OperatingExpenses[[#This Row],[תקציב]])-1),(OperatingExpenses[[#This Row],[תקופה נוכחית]]/OperatingExpenses[[#This Row],[תקציב]])-1))),\"-\")","v":{"v":0,"d":"0.00%"}}]
[null,"הנהלה וכלליות","שכר ומשכורת",{"$nulls":3},{"$f":"IFERROR(IF(רווח_ממכירות1=0,\"-\",OperatingExpenses[[#This Row],[תקופה נוכחית]]/רווח_ממכירות1),\"-\")","v":"-"},{"$f":"IFERROR(IF(OperatingExpenses[[#This Row],[תקופה קודמת]]=OperatingExpenses[[#This Row],[תקופה נוכחית]],0,IF(OperatingExpenses[[#This Row],[תקופה נוכחית]]>OperatingExpenses[[#This Row],[תקופה קודמת]],ABS((OperatingExpenses[[#This Row],[תקופה נוכחית]]/OperatingExpenses[[#This Row],[תקופה קודמת]])-1),IF(AND(OperatingExpenses[[#This Row],[תקופה נוכחית]]<OperatingExpenses[[#This Row],[תקופה קודמת]],OperatingExpenses[[#This Row],[תקופה קודמת]]<0),-((OperatingExpenses[[#This Row],[תקופה נוכחית]]/OperatingExpenses[[#This Row],[תקופה קודמת]])-1),(OperatingExpenses[[#This Row],[תקופה נוכחית]]/OperatingExpenses[[#This Row],[תקופה קודמת]])-1))),\"-\")","v":{"v":0,"d":"0.00%"}},{"$f":"IFERROR(IF(OperatingExpenses[[#This Row],[תקציב]]=OperatingExpenses[[#This Row],[תקופה נוכחית]],0,IF(OperatingExpenses[[#This Row],[תקופה נוכחית]]>OperatingExpenses[[#This Row],[תקציב]],ABS((OperatingExpenses[[#This Row],[תקופה נוכחית]]/OperatingExpenses[[#This Row],[תקציב]])-1),IF(AND(OperatingExpenses[[#This Row],[תקופה נוכחית]]<OperatingExpenses[[#This Row],[תקציב]],OperatingExpenses[[#This Row],[תקציב]]<0),-((OperatingExpenses[[#This Row],[תקופה נוכחית]]/OperatingExpenses[[#This Row],[תקציב]])-1),(OperatingExpenses[[#This Row],[תקופה נוכחית]]/OperatingExpenses[[#This Row],[תקציב]])-1))),\"-\")","v":{"v":0,"d":"0.00%"}}]
[null,"הנהלה וכלליות","שירותים חיצוניים",{"$nulls":3},{"$f":"IFERROR(IF(רווח_ממכירות1=0,\"-\",OperatingExpenses[[#This Row],[תקופה נוכחית]]/רווח_ממכירות1),\"-\")","v":"-"},{"$f":"IFERROR(IF(OperatingExpenses[[#This Row],[תקופה קודמת]]=OperatingExpenses[[#This Row],[תקופה נוכחית]],0,IF(OperatingExpenses[[#This Row],[תקופה נוכחית]]>OperatingExpenses[[#This Row],[תקופה קודמת]],ABS((OperatingExpenses[[#This Row],[תקופה נוכחית]]/OperatingExpenses[[#This Row],[תקופה קודמת]])-1),IF(AND(OperatingExpenses[[#This Row],[תקופה נוכחית]]<OperatingExpenses[[#This Row],[תקופה קודמת]],OperatingExpenses[[#This Row],[תקופה קודמת]]<0),-((OperatingExpenses[[#This Row],[תקופה נוכחית]]/OperatingExpenses[[#This Row],[תקופה קודמת]])-1),(OperatingExpenses[[#This Row],[תקופה נוכחית]]/OperatingExpenses[[#This Row],[תקופה קודמת]])-1))),\"-\")","v":{"v":0,"d":"0.00%"}},{"$f":"IFERROR(IF(OperatingExpenses[[#This Row],[תקציב]]=OperatingExpenses[[#This Row],[תקופה נוכחית]],0,IF(OperatingExpenses[[#This Row],[תקופה נוכחית]]>OperatingExpenses[[#This Row],[תקציב]],ABS((OperatingExpenses[[#This Row],[תקופה נוכחית]]/OperatingExpenses[[#This Row],[תקציב]])-1),IF(AND(OperatingExpenses[[#This Row],[תקופה נוכחית]]<OperatingExpenses[[#This Row],[תקציב]],OperatingExpenses[[#This Row],[תקציב]]<0),-((OperatingExpenses[[#This Row],[תקופה נוכחית]]/OperatingExpenses[[#This Row],[תקציב]])-1),(OperatingExpenses[[#This Row],[תקופה נוכחית]]/OperatingExpenses[[#This Row],[תקציב]])-1))),\"-\")","v":{"v":0,"d":"0.00%"}}]
[null,"הנהלה וכלליות","ציוד",{"$nulls":3},{"$f":"IFERROR(IF(רווח_ממכירות1=0,\"-\",OperatingExpenses[[#This Row],[תקופה נוכחית]]/רווח_ממכירות1),\"-\")","v":"-"},{"$f":"IFERROR(IF(OperatingExpenses[[#This Row],[תקופה קודמת]]=OperatingExpenses[[#This Row],[תקופה נוכחית]],0,IF(OperatingExpenses[[#This Row],[תקופה נוכחית]]>OperatingExpenses[[#This Row],[תקופה קודמת]],ABS((OperatingExpenses[[#This Row],[תקופה נוכחית]]/OperatingExpenses[[#This Row],[תקופה קודמת]])-1),IF(AND(OperatingExpenses[[#This Row],[תקופה נוכחית]]<OperatingExpenses[[#This Row],[תקופה קודמת]],OperatingExpenses[[#This Row],[תקופה קודמת]]<0),-((OperatingExpenses[[#This Row],[תקופה נוכחית]]/OperatingExpenses[[#This Row],[תקופה קודמת]])-1),(OperatingExpenses[[#This Row],[תקופה נוכחית]]/OperatingExpenses[[#This Row],[תקופה קודמת]])-1))),\"-\")","v":{"v":0,"d":"0.00%"}},{"$f":"IFERROR(IF(OperatingExpenses[[#This Row],[תקציב]]=OperatingExpenses[[#This Row],[תקופה נוכחית]],0,IF(OperatingExpenses[[#This Row],[תקופה נוכחית]]>OperatingExpenses[[#This Row],[תקציב]],ABS((OperatingExpenses[[#This Row],[תקופה נוכחית]]/OperatingExpenses[[#This Row],[תקציב]])-1),IF(AND(OperatingExpenses[[#This Row],[תקופה נוכחית]]<OperatingExpenses[[#This Row],[תקציב]],OperatingExpenses[[#This Row],[תקציב]]<0),-((OperatingExpenses[[#This Row],[תקופה נוכחית]]/OperatingExpenses[[#This Row],[תקציב]])-1),(OperatingExpenses[[#This Row],[תקופה נוכחית]]/OperatingExpenses[[#This Row],[תקציב]])-1))),\"-\")","v":{"v":0,"d":"0.00%"}}]
[null,"הנהלה וכלליות","ארוחות ובידור",{"$nulls":3},{"$f":"IFERROR(IF(רווח_ממכירות1=0,\"-\",OperatingExpenses[[#This Row],[תקופה נוכחית]]/רווח_ממכירות1),\"-\")","v":"-"},{"$f":"IFERROR(IF(OperatingExpenses[[#This Row],[תקופה קודמת]]=OperatingExpenses[[#This Row],[תקופה נוכחית]],0,IF(OperatingExpenses[[#This Row],[תקופה נוכחית]]>OperatingExpenses[[#This Row],[תקופה קודמת]],ABS((OperatingExpenses[[#This Row],[תקופה נוכחית]]/OperatingExpenses[[#This Row],[תקופה קודמת]])-1),IF(AND(OperatingExpenses[[#This Row],[תקופה נוכחית]]<OperatingExpenses[[#This Row],[תקופה קודמת]],OperatingExpenses[[#This Row],[תקופה קודמת]]<0),-((OperatingExpenses[[#This Row],[תקופה נוכחית]]/OperatingExpenses[[#This Row],[תקופה קודמת]])-1),(OperatingExpenses[[#This Row],[תקופה נוכחית]]/OperatingExpenses[[#This Row],[תקופה קודמת]])-1))),\"-\")","v":{"v":0,"d":"0.00%"}},{"$f":"IFERROR(IF(OperatingExpenses[[#This Row],[תקציב]]=OperatingExpenses[[#This Row],[תקופה נוכחית]],0,IF(OperatingExpenses[[#This Row],[תקופה נוכחית]]>OperatingExpenses[[#This Row],[תקציב]],ABS((OperatingExpenses[[#This Row],[תקופה נוכחית]]/OperatingExpenses[[#This Row],[תקציב]])-1),IF(AND(OperatingExpenses[[#This Row],[תקופה נוכחית]]<OperatingExpenses[[#This Row],[תקציב]],OperatingExpenses[[#This Row],[תקציב]]<0),-((OperatingExpenses[[#This Row],[תקופה נוכחית]]/OperatingExpenses[[#This Row],[תקציב]])-1),(OperatingExpenses[[#This Row],[תקופה נוכחית]]/OperatingExpenses[[#This Row],[תקציב]])-1))),\"-\")","v":{"v":0,"d":"0.00%"}}]
[null,"הנהלה וכלליות","שכ\"ד",{"$nulls":3},{"$f":"IFERROR(IF(רווח_ממכירות1=0,\"-\",OperatingExpenses[[#This Row],[תקופה נוכחית]]/רווח_ממכירות1),\"-\")","v":"-"},{"$f":"IFERROR(IF(OperatingExpenses[[#This Row],[תקופה קודמת]]=OperatingExpenses[[#This Row],[תקופה נוכחית]],0,IF(OperatingExpenses[[#This Row],[תקופה נוכחית]]>OperatingExpenses[[#This Row],[תקופה קודמת]],ABS((OperatingExpenses[[#This Row],[תקופה נוכחית]]/OperatingExpenses[[#This Row],[תקופה קודמת]])-1),IF(AND(OperatingExpenses[[#This Row],[תקופה נוכחית]]<OperatingExpenses[[#This Row],[תקופה קודמת]],OperatingExpenses[[#This Row],[תקופה קודמת]]<0),-((OperatingExpenses[[#This Row],[תקופה נוכחית]]/OperatingExpenses[[#This Row],[תקופה קודמת]])-1),(OperatingExpenses[[#This Row],[תקופה נוכחית]]/OperatingExpenses[[#This Row],[תקופה קודמת]])-1))),\"-\")","v":{"v":0,"d":"0.00%"}},{"$f":"IFERROR(IF(OperatingExpenses[[#This Row],[תקציב]]=OperatingExpenses[[#This Row],[תקופה נוכחית]],0,IF(OperatingExpenses[[#This Row],[תקופה נוכחית]]>OperatingExpenses[[#This Row],[תקציב]],ABS((OperatingExpenses[[#This Row],[תקופה נוכחית]]/OperatingExpenses[[#This Row],[תקציב]])-1),IF(AND(OperatingExpenses[[#This Row],[תקופה נוכחית]]<OperatingExpenses[[#This Row],[תקציב]],OperatingExpenses[[#This Row],[תקציב]]<0),-((OperatingExpenses[[#This Row],[תקופה נוכחית]]/OperatingExpenses[[#This Row],[תקציב]])-1),(OperatingExpenses[[#This Row],[תקופה נוכחית]]/OperatingExpenses[[#This Row],[תקציב]])-1))),\"-\")","v":{"v":0,"d":"0.00%"}}]
[null,"הנהלה וכלליות","טלפון",{"$nulls":3},{"$f":"IFERROR(IF(רווח_ממכירות1=0,\"-\",OperatingExpenses[[#This Row],[תקופה נוכחית]]/רווח_ממכירות1),\"-\")","v":"-"},{"$f":"IFERROR(IF(OperatingExpenses[[#This Row],[תקופה קודמת]]=OperatingExpenses[[#This Row],[תקופה נוכחית]],0,IF(OperatingExpenses[[#This Row],[תקופה נוכחית]]>OperatingExpenses[[#This Row],[תקופה קודמת]],ABS((OperatingExpenses[[#This Row],[תקופה נוכחית]]/OperatingExpenses[[#This Row],[תקופה קודמת]])-1),IF(AND(OperatingExpenses[[#This Row],[תקופה נוכחית]]<OperatingExpenses[[#This Row],[תקופה קודמת]],OperatingExpenses[[#This Row],[תקופה קודמת]]<0),-((OperatingExpenses[[#This Row],[תקופה נוכחית]]/OperatingExpenses[[#This Row],[תקופה קודמת]])-1),(OperatingExpenses[[#This Row],[תקופה נוכחית]]/OperatingExpenses[[#This Row],[תקופה קודמת]])-1))),\"-\")","v":{"v":0,"d":"0.00%"}},{"$f":"IFERROR(IF(OperatingExpenses[[#This Row],[תקציב]]=OperatingExpenses[[#This Row],[תקופה נוכחית]],0,IF(OperatingExpenses[[#This Row],[תקופה נוכחית]]>OperatingExpenses[[#This Row],[תקציב]],ABS((OperatingExpenses[[#This Row],[תקופה נוכחית]]/OperatingExpenses[[#This Row],[תקציב]])-1),IF(AND(OperatingExpenses[[#This Row],[תקופה נוכחית]]<OperatingExpenses[[#This Row],[תקציב]],OperatingExpenses[[#This Row],[תקציב]]<0),-((OperatingExpenses[[#This Row],[תקופה נוכחית]]/OperatingExpenses[[#This Row],[תקציב]])-1),(OperatingExpenses[[#This Row],[תקופה נוכחית]]/OperatingExpenses[[#This Row],[תקציב]])-1))),\"-\")","v":{"v":0,"d":"0.00%"}}]
[null,"הנהלה וכלליות","שירותים ציבוריים",{"$nulls":3},{"$f":"IFERROR(IF(רווח_ממכירות1=0,\"-\",OperatingExpenses[[#This Row],[תקופה נוכחית]]/רווח_ממכירות1),\"-\")","v":"-"},{"$f":"IFERROR(IF(OperatingExpenses[[#This Row],[תקופה קודמת]]=OperatingExpenses[[#This Row],[תקופה נוכחית]],0,IF(OperatingExpenses[[#This Row],[תקופה נוכחית]]>OperatingExpenses[[#This Row],[תקופה קודמת]],ABS((OperatingExpenses[[#This Row],[תקופה נוכחית]]/OperatingExpenses[[#This Row],[תקופה קודמת]])-1),IF(AND(OperatingExpenses[[#This Row],[תקופה נוכחית]]<OperatingExpenses[[#This Row],[תקופה קודמת]],OperatingExpenses[[#This Row],[תקופה קודמת]]<0),-((OperatingExpenses[[#This Row],[תקופה נוכחית]]/OperatingExpenses[[#This Row],[תקופה קודמת]])-1),(OperatingExpenses[[#This Row],[תקופה נוכחית]]/OperatingExpenses[[#This Row],[תקופה קודמת]])-1))),\"-\")","v":{"v":0,"d":"0.00%"}},{"$f":"IFERROR(IF(OperatingExpenses[[#This Row],[תקציב]]=OperatingExpenses[[#This Row],[תקופה נוכחית]],0,IF(OperatingExpenses[[#This Row],[תקופה נוכחית]]>OperatingExpenses[[#This Row],[תקציב]],ABS((OperatingExpenses[[#This Row],[תקופה נוכחית]]/OperatingExpenses[[#This Row],[תקציב]])-1),IF(AND(OperatingExpenses[[#This Row],[תקופה נוכחית]]<OperatingExpenses[[#This Row],[תקציב]],OperatingExpenses[[#This Row],[תקציב]]<0),-((OperatingExpenses[[#This Row],[תקופה נוכחית]]/OperatingExpenses[[#This Row],[תקציב]])-1),(OperatingExpenses[[#This Row],[תקופה נוכחית]]/OperatingExpenses[[#This Row],[תקציב]])-1))),\"-\")","v":{"v":0,"d":"0.00%"}}]
[null,"הנהלה וכלליות","פחת",{"$nulls":3},{"$f":"IFERROR(IF(רווח_ממכירות1=0,\"-\",OperatingExpenses[[#This Row],[תקופה נוכחית]]/רווח_ממכירות1),\"-\")","v":"-"},{"$f":"IFERROR(IF(OperatingExpenses[[#This Row],[תקופה קודמת]]=OperatingExpenses[[#This Row],[תקופה נוכחית]],0,IF(OperatingExpenses[[#This Row],[תקופה נוכחית]]>OperatingExpenses[[#This Row],[תקופה קודמת]],ABS((OperatingExpenses[[#This Row],[תקופה נוכחית]]/OperatingExpenses[[#This Row],[תקופה קודמת]])-1),IF(AND(OperatingExpenses[[#This Row],[תקופה נוכחית]]<OperatingExpenses[[#This Row],[תקופה קודמת]],OperatingExpenses[[#This Row],[תקופה קודמת]]<0),-((OperatingExpenses[[#This Row],[תקופה נוכחית]]/OperatingExpenses[[#This Row],[תקופה קודמת]])-1),(OperatingExpenses[[#This Row],[תקופה נוכחית]]/OperatingExpenses[[#This Row],[תקופה קודמת]])-1))),\"-\")","v":{"v":0,"d":"0.00%"}},{"$f":"IFERROR(IF(OperatingExpenses[[#This Row],[תקציב]]=OperatingExpenses[[#This Row],[תקופה נוכחית]],0,IF(OperatingExpenses[[#This Row],[תקופה נוכחית]]>OperatingExpenses[[#This Row],[תקציב]],ABS((OperatingExpenses[[#This Row],[תקופה נוכחית]]/OperatingExpenses[[#This Row],[תקציב]])-1),IF(AND(OperatingExpenses[[#This Row],[תקופה נוכחית]]<OperatingExpenses[[#This Row],[תקציב]],OperatingExpenses[[#This Row],[תקציב]]<0),-((OperatingExpenses[[#This Row],[תקופה נוכחית]]/OperatingExpenses[[#This Row],[תקציב]])-1),(OperatingExpenses[[#This Row],[תקופה נוכחית]]/OperatingExpenses[[#This Row],[תקציב]])-1))),\"-\")","v":{"v":0,"d":"0.00%"}}]
[null,"הנהלה וכלליות","ביטוח",{"$nulls":3},{"$f":"IFERROR(IF(רווח_ממכירות1=0,\"-\",OperatingExpenses[[#This Row],[תקופה נוכחית]]/רווח_ממכירות1),\"-\")","v":"-"},{"$f":"IFERROR(IF(OperatingExpenses[[#This Row],[תקופה קודמת]]=OperatingExpenses[[#This Row],[תקופה נוכחית]],0,IF(OperatingExpenses[[#This Row],[תקופה נוכחית]]>OperatingExpenses[[#This Row],[תקופה קודמת]],ABS((OperatingExpenses[[#This Row],[תקופה נוכחית]]/OperatingExpenses[[#This Row],[תקופה קודמת]])-1),IF(AND(OperatingExpenses[[#This Row],[תקופה נוכחית]]<OperatingExpenses[[#This Row],[תקופה קודמת]],OperatingExpenses[[#This Row],[תקופה קודמת]]<0),-((OperatingExpenses[[#This Row],[תקופה נוכחית]]/OperatingExpenses[[#This Row],[תקופה קודמת]])-1),(OperatingExpenses[[#This Row],[תקופה נוכחית]]/OperatingExpenses[[#This Row],[תקופה קודמת]])-1))),\"-\")","v":{"v":0,"d":"0.00%"}},{"$f":"IFERROR(IF(OperatingExpenses[[#This Row],[תקציב]]=OperatingExpenses[[#This Row],[תקופה נוכחית]],0,IF(OperatingExpenses[[#This Row],[תקופה נוכחית]]>OperatingExpenses[[#This Row],[תקציב]],ABS((OperatingExpenses[[#This Row],[תקופה נוכחית]]/OperatingExpenses[[#This Row],[תקציב]])-1),IF(AND(OperatingExpenses[[#This Row],[תקופה נוכחית]]<OperatingExpenses[[#This Row],[תקציב]],OperatingExpenses[[#This Row],[תקציב]]<0),-((OperatingExpenses[[#This Row],[תקופה נוכחית]]/OperatingExpenses[[#This Row],[תקציב]])-1),(OperatingExpenses[[#This Row],[תקופה נוכחית]]/OperatingExpenses[[#This Row],[תקציב]])-1))),\"-\")","v":{"v":0,"d":"0.00%"}}]
[null,"הנהלה וכלליות","תיקונים ותחזוקה",{"$nulls":3},{"$f":"IFERROR(IF(רווח_ממכירות1=0,\"-\",OperatingExpenses[[#This Row],[תקופה נוכחית]]/רווח_ממכירות1),\"-\")","v":"-"},{"$f":"IFERROR(IF(OperatingExpenses[[#This Row],[תקופה קודמת]]=OperatingExpenses[[#This Row],[תקופה נוכחית]],0,IF(OperatingExpenses[[#This Row],[תקופה נוכחית]]>OperatingExpenses[[#This Row],[תקופה קודמת]],ABS((OperatingExpenses[[#This Row],[תקופה נוכחית]]/OperatingExpenses[[#This Row],[תקופה קודמת]])-1),IF(AND(OperatingExpenses[[#This Row],[תקופה נוכחית]]<OperatingExpenses[[#This Row],[תקופה קודמת]],OperatingExpenses[[#This Row],[תקופה קודמת]]<0),-((OperatingExpenses[[#This Row],[תקופה נוכחית]]/OperatingExpenses[[#This Row],[תקופה קודמת]])-1),(OperatingExpenses[[#This Row],[תקופה נוכחית]]/OperatingExpenses[[#This Row],[תקופה קודמת]])-1))),\"-\")","v":{"v":0,"d":"0.00%"}},{"$f":"IFERROR(IF(OperatingExpenses[[#This Row],[תקציב]]=OperatingExpenses[[#This Row],[תקופה נוכחית]],0,IF(OperatingExpenses[[#This Row],[תקופה נוכחית]]>OperatingExpenses[[#This Row],[תקציב]],ABS((OperatingExpenses[[#This Row],[תקופה נוכחית]]/OperatingExpenses[[#This Row],[תקציב]])-1),IF(AND(OperatingExpenses[[#This Row],[תקופה נוכחית]]<OperatingExpenses[[#This Row],[תקציב]],OperatingExpenses[[#This Row],[תקציב]]<0),-((OperatingExpenses[[#This Row],[תקופה נוכחית]]/OperatingExpenses[[#This Row],[תקציב]])-1),(OperatingExpenses[[#This Row],[תקופה נוכחית]]/OperatingExpenses[[#This Row],[תקציב]])-1))),\"-\")","v":{"v":0,"d":"0.00%"}}]
[null,"הנהלה וכלליות","הוצאות אחרות (ציין)",{"$nulls":3},{"$f":"IFERROR(IF(רווח_ממכירות1=0,\"-\",OperatingExpenses[[#This Row],[תקופה נוכחית]]/רווח_ממכירות1),\"-\")","v":"-"},{"$f":"IFERROR(IF(OperatingExpenses[[#This Row],[תקופה קודמת]]=OperatingExpenses[[#This Row],[תקופה נוכחית]],0,IF(OperatingExpenses[[#This Row],[תקופה נוכחית]]>OperatingExpenses[[#This Row],[תקופה קודמת]],ABS((OperatingExpenses[[#This Row],[תקופה נוכחית]]/OperatingExpenses[[#This Row],[תקופה קודמת]])-1),IF(AND(OperatingExpenses[[#This Row],[תקופה נוכחית]]<OperatingExpenses[[#This Row],[תקופה קודמת]],OperatingExpenses[[#This Row],[תקופה קודמת]]<0),-((OperatingExpenses[[#This Row],[תקופה נוכחית]]/OperatingExpenses[[#This Row],[תקופה קודמת]])-1),(OperatingExpenses[[#This Row],[תקופה נוכחית]]/OperatingExpenses[[#This Row],[תקופה קודמת]])-1))),\"-\")","v":{"v":0,"d":"0.00%"}},{"$f":"IFERROR(IF(OperatingExpenses[[#This Row],[תקציב]]=OperatingExpenses[[#This Row],[תקופה נוכחית]],0,IF(OperatingExpenses[[#This Row],[תקופה נוכחית]]>OperatingExpenses[[#This Row],[תקציב]],ABS((OperatingExpenses[[#This Row],[תקופה נוכחית]]/OperatingExpenses[[#This Row],[תקציב]])-1),IF(AND(OperatingExpenses[[#This Row],[תקופה נוכחית]]<OperatingExpenses[[#This Row],[תקציב]],OperatingExpenses[[#This Row],[תקציב]]<0),-((OperatingExpenses[[#This Row],[תקופה נוכחית]]/OperatingExpenses[[#This Row],[תקציב]])-1),(OperatingExpenses[[#This Row],[תקופה נוכחית]]/OperatingExpenses[[#This Row],[תקציב]])-1))),\"-\")","v":{"v":0,"d":"0.00%"}}]
[null,"הנהלה וכלליות","הוצאות אחרות (ציין)",{"$nulls":3},{"$f":"IFERROR(IF(רווח_ממכירות1=0,\"-\",OperatingExpenses[[#This Row],[תקופה נוכחית]]/רווח_ממכירות1),\"-\")","v":"-"},{"$f":"IFERROR(IF(OperatingExpenses[[#This Row],[תקופה קודמת]]=OperatingExpenses[[#This Row],[תקופה נוכחית]],0,IF(OperatingExpenses[[#This Row],[תקופה נוכחית]]>OperatingExpenses[[#This Row],[תקופה קודמת]],ABS((OperatingExpenses[[#This Row],[תקופה נוכחית]]/OperatingExpenses[[#This Row],[תקופה קודמת]])-1),IF(AND(OperatingExpenses[[#This Row],[תקופה נוכחית]]<OperatingExpenses[[#This Row],[תקופה קודמת]],OperatingExpenses[[#This Row],[תקופה קודמת]]<0),-((OperatingExpenses[[#This Row],[תקופה נוכחית]]/OperatingExpenses[[#This Row],[תקופה קודמת]])-1),(OperatingExpenses[[#This Row],[תקופה נוכחית]]/OperatingExpenses[[#This Row],[תקופה קודמת]])-1))),\"-\")","v":{"v":0,"d":"0.00%"}},{"$f":"IFERROR(IF(OperatingExpenses[[#This Row],[תקציב]]=OperatingExpenses[[#This Row],[תקופה נוכחית]],0,IF(OperatingExpenses[[#This Row],[תקופה נוכחית]]>OperatingExpenses[[#This Row],[תקציב]],ABS((OperatingExpenses[[#This Row],[תקופה נוכחית]]/OperatingExpenses[[#This Row],[תקציב]])-1),IF(AND(OperatingExpenses[[#This Row],[תקופה נוכחית]]<OperatingExpenses[[#This Row],[תקציב]],OperatingExpenses[[#This Row],[תקציב]]<0),-((OperatingExpenses[[#This Row],[תקופה נוכחית]]/OperatingExpenses[[#This Row],[תקציב]])-1),(OperatingExpenses[[#This Row],[תקופה נוכחית]]/OperatingExpenses[[#This Row],[תקציב]])-1))),\"-\")","v":{"v":0,"d":"0.00%"}}]
[null,"סה\"כ הוצאות תפעוליות",null,{"$f":"SUBTOTAL(109,OperatingExpenses[תקופה קודמת])","v":0},{"$f":"SUBTOTAL(109,OperatingExpenses[תקציב])","v":0},{"$f":"SUBTOTAL(109,OperatingExpenses[תקופה נוכחית])","v":0},{"$f":"SUBTOTAL(109,OperatingExpenses[תקופה נוכחית כאחוז מהמכירות])","v":{"v":0,"d":"0.00%"}},{"$f":"SUBTOTAL(109,OperatingExpenses[אחוז שינוי מהתקופה הקודמת])","v":{"v":0,"d":"0.00%"}},{"$f":"SUBTOTAL(109,OperatingExpenses[אחוז שינוי מהתקציב])","v":{"v":0,"d":"0.00%"}}]

{"sheet":"מסים","index":4,"n_rows":10,"n_cols":9,"rows_kept":10,"merged":[[0,7,2,8]]}
[null,{"$f":"כותרת_חוברת_העבודה","v":"דוח רווח והפסד"}]
[null,{"$f":"שם_החברה","v":"שם החברה"},"באלפים"]
[null,"מסים",{"$f":"IFERROR(מסים[[#Totals],[תקופה נוכחית]],\"-\")","v":0}]
[null,"סוג","תיאור","תקופה קודמת","תקציב","תקופה נוכחית","תקופה נוכחית כאחוז מהמכירות","אחוז שינוי מהתקופה הקודמת","אחוז שינוי מהתקציב"]
[null,"מסים","מס הכנסה",{"$nulls":3},{"$f":"IFERROR(IF(רווח_ממכירות1=0,\"-\",מסים[[#This Row],[תקופה נוכחית]]/רווח_ממכירות1),\"-\")","v":"-"},{"$f":"IFERROR(IF(מסים[[#This Row],[תקופה קודמת]]=מסים[[#This Row],[תקופה נוכחית]],0,IF(מסים[[#This Row],[תקופה נוכחית]]>מסים[[#This Row],[תקופה קודמת]],ABS((מסים[[#This Row],[תקופה נוכחית]]/מסים[[#This Row],[תקופה קודמת]])-1),IF(AND(מסים[[#This Row],[תקופה נוכחית]]<מסים[[#This Row],[תקופה קודמת]],מסים[[#This Row],[תקופה קודמת]]<0),-((מסים[[#This Row],[תקופה נוכחית]]/מסים[[#This Row],[תקופה קודמת]])-1),(מסים[[#This Row],[תקופה נוכחית]]/מסים[[#This Row],[תקופה קודמת]])-1))),\"-\")","v":{"v":0,"d":"0.00%"}},{"$f":"IFERROR(IF(מסים[[#This Row],[תקציב]]=מסים[[#This Row],[תקופה נוכחית]],0,IF(מסים[[#This Row],[תקופה נוכחית]]>מסים[[#This Row],[תקציב]],ABS((מסים[[#This Row],[תקופה נוכחית]]/מסים[[#This Row],[תקציב]])-1),IF(AND(מסים[[#This Row],[תקופה נוכחית]]<מסים[[#This Row],[תקציב]],מסים[[#This Row],[תקציב]]<0),-((מסים[[#This Row],[תקופה נוכחית]]/מסים[[#This Row],[תקציב]])-1),(מסים[[#This Row],[תקופה נוכחית]]/מסים[[#This Row],[תקציב]])-1))),\"-\")","v":{"v":0,"d":"0.00%"}}]
[null,"מסים","מס שכר",{"$nulls":3},{"$f":"IFERROR(IF(רווח_ממכירות1=0,\"-\",מסים[[#This Row],[תקופה נוכחית]]/רווח_ממכירות1),\"-\")","v":"-"},{"$f":"IFERROR(IF(מסים[[#This Row],[תקופה קודמת]]=מסים[[#This Row],[תקופה נוכחית]],0,IF(מסים[[#This Row],[תקופה נוכחית]]>מסים[[#This Row],[תקופה קודמת]],ABS((מסים[[#This Row],[תקופה נוכחית]]/מסים[[#This Row],[תקופה קודמת]])-1),IF(AND(מסים[[#This Row],[תקופה נוכחית]]<מסים[[#This Row],[תקופה קודמת]],מסים[[#This Row],[תקופה קודמת]]<0),-((מסים[[#This Row],[תקופה נוכחית]]/מסים[[#This Row],[תקופה קודמת]])-1),(מסים[[#This Row],[תקופה נוכחית]]/מסים[[#This Row],[תקופה קודמת]])-1))),\"-\")","v":{"v":0,"d":"0.00%"}},{"$f":"IFERROR(IF(מסים[[#This Row],[תקציב]]=מסים[[#This Row],[תקופה נוכחית]],0,IF(מסים[[#This Row],[תקופה נוכחית]]>מסים[[#This Row],[תקציב]],ABS((מסים[[#This Row],[תקופה נוכחית]]/מסים[[#This Row],[תקציב]])-1),IF(AND(מסים[[#This Row],[תקופה נוכחית]]<מסים[[#This Row],[תקציב]],מסים[[#This Row],[תקציב]]<0),-((מסים[[#This Row],[תקופה נוכחית]]/מסים[[#This Row],[תקציב]])-1),(מסים[[#This Row],[תקופה נוכחית]]/מסים[[#This Row],[תקציב]])-1))),\"-\")","v":{"v":0,"d":"0.00%"}}]
[null,"מסים","מסי נדל\"ן",{"$nulls":3},{"$f":"IFERROR(IF(רווח_ממכירות1=0,\"-\",מסים[[#This Row],[תקופה נוכחית]]/רווח_ממכירות1),\"-\")","v":"-"},{"$f":"IFERROR(IF(מסים[[#This Row],[תקופה קודמת]]=מסים[[#This Row],[תקופה נוכחית]],0,IF(מסים[[#This Row],[תקופה נוכחית]]>מסים[[#This Row],[תקופה קודמת]],ABS((מסים[[#This Row],[תקופה נוכחית]]/מסים[[#This Row],[תקופה קודמת]])-1),IF(AND(מסים[[#This Row],[תקופה נוכחית]]<מסים[[#This Row],[תקופה קודמת]],מסים[[#This Row],[תקופה קודמת]]<0),-((מסים[[#This Row],[תקופה נוכחית]]/מסים[[#This Row],[תקופה קודמת]])-1),(מסים[[#This Row],[תקופה נוכחית]]/מסים[[#This Row],[תקופה קודמת]])-1))),\"-\")","v":{"v":0,"d":"0.00%"}},{"$f":"IFERROR(IF(מסים[[#This Row],[תקציב]]=מסים[[#This Row],[תקופה נוכחית]],0,IF(מסים[[#This Row],[תקופה נוכחית]]>מסים[[#This Row],[תקציב]],ABS((מסים[[#This Row],[תקופה נוכחית]]/מסים[[#This Row],[תקציב]])-1),IF(AND(מסים[[#This Row],[תקופה נוכחית]]<מסים[[#This Row],[תקציב]],מסים[[#This Row],[תקציב]]<0),-((מסים[[#This Row],[תקופה נוכחית]]/מסים[[#This Row],[תקציב]])-1),(מסים[[#This Row],[תקופה נוכחית]]/מסים[[#This Row],[תקציב]])-1))),\"-\")","v":{"v":0,"d":"0.00%"}}]
[null,"מסים","מסים אחרים (ציין)",{"$nulls":3},{"$f":"IFERROR(IF(רווח_ממכירות1=0,\"-\",מסים[[#This Row],[תקופה נוכחית]]/רווח_ממכירות1),\"-\")","v":"-"},{"$f":"IFERROR(IF(מסים[[#This Row],[תקופה קודמת]]=מסים[[#This Row],[תקופה נוכחית]],0,IF(מסים[[#This Row],[תקופה נוכחית]]>מסים[[#This Row],[תקופה קודמת]],ABS((מסים[[#This Row],[תקופה נוכחית]]/מסים[[#This Row],[תקופה קודמת]])-1),IF(AND(מסים[[#This Row],[תקופה נוכחית]]<מסים[[#This Row],[תקופה קודמת]],מסים[[#This Row],[תקופה קודמת]]<0),-((מסים[[#This Row],[תקופה נוכחית]]/מסים[[#This Row],[תקופה קודמת]])-1),(מסים[[#This Row],[תקופה נוכחית]]/מסים[[#This Row],[תקופה קודמת]])-1))),\"-\")","v":{"v":0,"d":"0.00%"}},{"$f":"IFERROR(IF(מסים[[#This Row],[תקציב]]=מסים[[#This Row],[תקופה נוכחית]],0,IF(מסים[[#This Row],[תקופה נוכחית]]>מסים[[#This Row],[תקציב]],ABS((מסים[[#This Row],[תקופה נוכחית]]/מסים[[#This Row],[תקציב]])-1),IF(AND(מסים[[#This Row],[תקופה נוכחית]]<מסים[[#This Row],[תקציב]],מסים[[#This Row],[תקציב]]<0),-((מסים[[#This Row],[תקופה נוכחית]]/מסים[[#This Row],[תקציב]])-1),(מסים[[#This Row],[תקופה נוכחית]]/מסים[[#This Row],[תקציב]])-1))),\"-\")","v":{"v":0,"d":"0.00%"}}]
[null,"מסים","מסים אחרים (ציין)",{"$nulls":3},{"$f":"IFERROR(IF(רווח_ממכירות1=0,\"-\",מסים[[#This Row],[תקופה נוכחית]]/רווח_ממכירות1),\"-\")","v":"-"},{"$f":"IFERROR(IF(מסים[[#This Row],[תקופה קודמת]]=מסים[[#This Row],[תקופה נוכחית]],0,IF(מסים[[#This Row],[תקופה נוכחית]]>מסים[[#This Row],[תקופה קודמת]],ABS((מסים[[#This Row],[תקופה נוכחית]]/מסים[[#This Row],[תקופה קודמת]])-1),IF(AND(מסים[[#This Row],[תקופה נוכחית]]<מסים[[#This Row],[תקופה קודמת]],מסים[[#This Row],[תקופה קודמת]]<0),-((מסים[[#This Row],[תקופה נוכחית]]/מסים[[#This Row],[תקופה קודמת]])-1),(מסים[[#This Row],[תקופה נוכחית]]/מסים[[#This Row],[תקופה קודמת]])-1))),\"-\")","v":{"v":0,"d":"0.00%"}},{"$f":"IFERROR(IF(מסים[[#This Row],[תקציב]]=מסים[[#This Row],[תקופה נוכחית]],0,IF(מסים[[#This Row],[תקופה נוכחית]]>מסים[[#This Row],[תקציב]],ABS((מסים[[#This Row],[תקופה נוכחית]]/מסים[[#This Row],[תקציב]])-1),IF(AND(מסים[[#This Row],[תקופה נוכחית]]<מסים[[#This Row],[תקציב]],מסים[[#This Row],[תקציב]]<0),-((מסים[[#This Row],[תקופה נוכחית]]/מסים[[#This Row],[תקציב]])-1),(מסים[[#This Row],[תקופה נוכחית]]/מסים[[#This Row],[תקציב]])-1))),\"-\")","v":{"v":0,"d":"0.00%"}}]
[null,"סה\"כ מסים",null,{"$f":"SUBTOTAL(109,מסים[תקופה קודמת])","v":0},{"$f":"SUBTOTAL(109,מסים[תקציב])","v":0},{"$f":"SUBTOTAL(109,מסים[תקופה נוכחית])","v":0},{"$f":"IFERROR(SUBTOTAL(109,מסים[תקופה נוכחית כאחוז מהמכירות]),\"-\")","v":{"v":0,"d":"0.00%"}},{"$f":"SUBTOTAL(109,מסים[אחוז שינוי מהתקופה הקודמת])","v":{"v":0,"d":"0.00%"}},{"$f":"SUBTOTAL(109,מסים[אחוז שינוי מהתקציב])","v":{"v":0,"d":"0.00%"}}]

{"sheet":"קטגוריות","index":5,"n_rows":8,"n_cols":2,"rows_kept":8}
[null,"קטגוריות"]
[null,"רווח ממכירות"]
[null,"עלות מכירות"]
[null,"הכנסות"]
[null,"מכירות ושיווק"]
[null,"מחקר ופיתוח"]
[null,"הנהלה וכלליות"]
[null,"מסים"]